[Event "NOR-ch Various 2019"]
[Site "Larvik"]
[Date "2019.07.09"]
[Round "5.34"]
[White "Demac, Elias"]
[Black "Machlik, Monika"]
[Result "1-0"]
[ECO "A45"]
[WhiteElo "2215"]
[BlackElo "2083"]
[Annotator "NA"]
[PlyCount "111"]
[EventDate "2019.07.06"]
[EventType "swiss"]
[EventCountry "NOR"]
[SourceTitle "playchess.com"]
[Source "ChessBase"]
[SourceQuality "1"]
[TimeControl "40/5400+30:1800+30"]

1. d4 {[%emt 0:00:00]} Nf6 {[%emt 0:00:00]} 2. Bg5 {[%emt 0:00:00]} e6 {[%emt 0:00:24]} 3. e4 {[%emt 0:00:00]} h6 {[%emt 0:00:04]} 4. Bxf6 {[%emt 0:00:00]} Qxf6 {[%emt 0:00:03]} 5. c3 {[%emt 0:00:00]} d6 {[%emt 0:00:22]} 6. Nd2 {[%emt 0:00:00]} e5 {[%emt 0:13:30]} 7. Ngf3 {[%emt 0:00:23]} c6 {[%emt 0:07:12]} 8. Nc4 {[%emt 0:03:32]} Nd7 {[%emt 0:00:37]} 9. g3 {[%emt 0:10:05]} Be7 {[%emt 0:02:22]} 10. Bh3 {[%emt 0:01:26]} exd4 {[%emt 0:11:51]} 11. cxd4 {[%emt 0:05:50]} d5 {[%emt 0:08:02]} 12. e5 {[%emt 0:01:37]} Qg6 {[%emt 0:03:24]} 13. Ne3 {[%emt 0:03:28]} Bb4+ {[%emt 0:18:20]} 14. Kf1 {[%emt 0:09:08]} Nb6 {[%emt 0:05:12]} 15. Bxc8 {[%emt 0:04:04]} Rxc8 {[%emt 0:00:25]} 16. Qb1 {[%emt 0:01:43]} Qxb1+ {[%emt 0:02:58]} 17. Rxb1 {[%emt 0:00:06]} O-O {[%emt 0:01:23]} 18. Kg2 {[%emt 0:03:15]} Rfd8 {[%emt 0:00:50]} 19. Rhc1 {[%emt 0:02:38]} Bf8 {[%emt 0:02:40]} 20. b4 {[%emt 0:02:34]} Na8 {[%emt 0:03:46]} 21. a4 {[%emt 0:04:30]} Nc7 {[%emt 0:03:48]} 22. Nc2 {[%emt 0:13:57]} Ne6 {[%emt 0:00:43]} 23. Nce1 {[%emt 0:02:07]} Rc7 {[%emt 0:03:52]} 24. Nd3 {[%emt 0:01:31]} b6 {[%emt 0:02:42]} 25. Rc2 {[%emt 0:01:18]} c5 {[%emt 0:01:36]} 26. bxc5 {[%emt 0:00:30]} bxc5 {[%emt 0:00:03]} 27. dxc5 {[%emt 0:00:06]} Nxc5 {[%emt 0:00:19]} 28. Nxc5 {[%emt 0:00:22]} Rxc5 {[%emt 0:01:29]} 29. Rxc5 {[%emt 0:00:07]} Bxc5 {[%emt 0:00:02]} 30. Ne1 {[%emt 0:00:20]} Bd4 {[%emt 0:01:52]} 31. Nd3 {[%emt 0:00:38]} a5 {[%emt 0:02:12]} 32. Rb5 {[%emt 0:01:04]} Bc3 {[%emt 0:00:14]} 33. f4 {[%emt 0:00:29]} d4 {[%emt 0:00:34]} 34. Kf3 {[%emt 0:00:16]} Rc8 {[%emt 0:00:12]} 35. f5 {[%emt 0:02:33]} Kf8 {[%emt 0:01:39]} 36. Ke4 {[%emt 0:05:52]} Rd8 {[%emt 0:01:42]} 37. Rb7 {[%emt 0:00:57]} Bb4 {[%emt 0:00:36]} 38. g4 {[%emt 0:03:21]} Ba3 {[%emt 0:00:51]} 39. Ra7 {[%emt 0:02:59]} Bb4 {[%emt 0:00:08]} 40. h4 {[%emt 0:00:09]} Bc3 {[%emt 0:01:05]} 41. g5 {[%emt 0:30:40]} hxg5 {[%emt 0:00:51]} 42. hxg5 {[%emt 0:00:00]} Rb8 {[%emt 0:07:34]} 43. e6 {[%emt 0:00:00]} fxe6 {[%emt 0:00:34]} 44. fxe6 {[%emt 0:00:00]} Bb4 {[%emt 0:03:15]} 45. Ne5 {[%emt 0:00:00]} Re8 {[%emt 0:01:38]} 46. Kf5 {[%emt 0:00:00]} Kg8 {[%emt 0:10:07]} 47. Rd7 {[%emt 0:00:00]} Bc5 {[%emt 0:03:17]} 48. Nc6 {[%emt 0:00:00]} Kf8 {[%emt 0:02:05]} 49. g6 {[%emt 0:00:00]} Rc8 {[%emt 0:01:02]} 50. e7+ {[%emt 0:00:00]} Bxe7 {[%emt 0:00:25]} 51. Nxe7 {[%emt 0:00:00]} Ke8 {[%emt 0:01:14]} 52. Nxc8 {[%emt 0:00:00]} Kxd7 {[%emt 0:00:04]} 53. Nb6+ {[%emt 0:00:00]} Kc6 {[%emt 0:00:37]} 54. Nc4 {[%emt 0:00:00]} Kc5 {[%emt 0:01:53]} 55. Nxa5 {[%emt 0:00:00]} d3 {[%emt 0:00:08]} 56. Nb3+ {[%emt 0:00:00]} 1-0

[Event "NOR-ch Various 2019"]
[Site "Larvik"]
[Date "2019.07.09"]
[Round "5.35"]
[White "Gulbrandsen, Tor"]
[Black "Martinsen, Stig K"]
[Result "0-1"]
[ECO "A87"]
[WhiteElo "2120"]
[BlackElo "2177"]
[Annotator "NA"]
[PlyCount "92"]
[EventDate "2019.07.06"]
[EventType "swiss"]
[EventCountry "NOR"]
[SourceTitle "playchess.com"]
[Source "ChessBase"]
[SourceQuality "1"]
[TimeControl "40/5400+30:1800+30"]

1. c4 {[%emt 0:04:55]} f5 {[%emt 0:02:35]} 2. g3 {[%emt 0:00:22]} Nf6 {[%emt 0:00:19]} 3. Bg2 {[%emt 0:00:18]} g6 {[%emt 0:00:16]} 4. Nf3 {[%emt 0:00:34]} Bg7 {[%emt 0:00:20]} 5. Nc3 {[%emt 0:00:16]} O-O {[%emt 0:00:22]} 6. O-O {[%emt 0:00:29]} d6 {[%emt 0:02:20]} 7. d4 {[%emt 0:02:26]} Qe8 {[%emt 0:00:45]} 8. b3 {[%emt 0:02:45]} e5 {[%emt 0:03:32]} 9. dxe5 {[%emt 0:01:01]} dxe5 {[%emt 0:00:10]} 10. Ba3 {[%emt 0:07:05]} Rf7 {[%emt 0:01:16]} 11. Qc2 {[%emt 0:02:03]} Nc6 {[%emt 0:15:12]} 12. Rad1 {[%emt 0:06:36]} h6 {[%emt 0:08:41]} 13. e3 {[%emt 0:07:40]} e4 {[%emt 0:08:09]} 14. Nd4 {[%emt 0:04:25]} Ne5 {[%emt 0:01:43]} 15. Nd5 {[%emt 0:07:06]} Kh7 {[%emt 0:16:16]} 16. Qe2 {[%emt 0:07:02]} c6 {[%emt 0:10:22]} 17. Nxf6+ {[%emt 0:01:49]} Bxf6 {[%emt 0:00:26]} 18. h4 {[%emt 0:02:46]} Rg7 {[%emt 0:06:51]} 19. Rd2 {[%emt 0:09:35]} g5 {[%emt 0:08:42]} 20. hxg5 {[%emt 0:01:48]} hxg5 {[%emt 0:00:27]} 21. f4 {[%emt 0:04:20]} gxf4 {[%emt 0:06:19]} 22. exf4 {[%emt 0:07:55]} Ng4 {[%emt 0:00:49]} 23. Bf3 {[%emt 0:08:16]} Bd7 {[%emt 0:03:23]} 24. Bxg4 {[%emt 0:02:37]} Rxg4 {[%emt 0:00:20]} 25. Qh2+ {[%emt 0:01:33]} Kg6 {[%emt 0:01:26]} 26. Ne2 {[%emt 0:00:46]} Qf7 {[%emt 0:01:17]} 27. Rd6 {[%emt 0:01:45]} Be6 {[%emt 0:00:37]} 28. Rfd1 {[%emt 0:01:52]} Rh8 {[%emt 0:00:24]} 29. Qxh8 {[%emt 0:02:09]} Bxh8 {[%emt 0:00:13]} 30. Rxe6+ {[%emt 0:00:17]} Qxe6 {[%emt 0:00:32]} 31. Rd6 {[%emt 0:00:21]} Kf7 {[%emt 0:00:25]} 32. Rxe6 {[%emt 0:00:21]} Kxe6 {[%emt 0:00:03]} 33. Kf2 {[%emt 0:00:57]} Rg8 {[%emt 0:00:39]} 34. Bc5 {[%emt 0:00:35]} a6 {[%emt 0:01:10]} 35. a4 {[%emt 0:01:39]} Rd8 {[%emt 0:00:26]} 36. b4 {[%emt 0:00:34]} Rd3 {[%emt 0:00:30]} 37. b5 {[%emt 0:00:46]} Kd7 {[%emt 0:00:38]} 38. bxa6 {[%emt 0:00:38]} bxa6 {[%emt 0:00:08]} 39. Bb6 {[%emt 0:00:31]} Bc3 {[%emt 0:00:38]} 40. a5 {[%emt 0:00:33]} Rf3+ {[%emt 0:00:44]} 41. Kg2 {[%emt 0:01:25]} Rd3 {[%emt 0:07:04]} 42. Kf2 {[%emt 0:02:54]} Bb4 {[%emt 0:02:20]} 43. Kg2 {[%emt 0:07:14]} c5 {[%emt 0:03:54]} 44. g4 {[%emt 0:04:52]} fxg4 {[%emt 0:01:52]} 45. f5 {[%emt 0:00:30]} Rf3 {[%emt 0:06:32]} 46. Ng3 {[%emt 0:01:34]} e3 {[%emt 0:00:49]} 0-1

[Event "NOR-ch Various 2019"]
[Site "Larvik"]
[Date "2019.07.09"]
[Round "5.36"]
[White "Fossan, Aleksander"]
[Black "Skagseth, Havard M"]
[Result "1-0"]
[ECO "B14"]
[WhiteElo "2155"]
[BlackElo "2002"]
[Annotator "NA"]
[PlyCount "87"]
[EventDate "2019.07.06"]
[EventType "swiss"]
[EventCountry "NOR"]
[SourceTitle "playchess.com"]
[Source "ChessBase"]
[SourceQuality "1"]
[TimeControl "40/5400+30:1800+30"]

1. e4 {[%emt 0:01:38]} c5 {[%emt 0:00:10]} 2. c3 {[%emt 0:00:20]} g6 {[%emt 0:00:27]} 3. d4 {[%emt 0:00:07]} cxd4 {[%emt 0:00:04]} 4. cxd4 {[%emt 0:00:03]} d5 {[%emt 0:00:08]} 5. exd5 {[%emt 0:00:10]} Nf6 {[%emt 0:00:06]} 6. Nc3 {[%emt 0:00:07]} Nxd5 {[%emt 0:00:51]} 7. Qb3 {[%emt 0:00:07]} Nb6 {[%emt 0:01:00]} 8. d5 {[%emt 0:00:13]} Bg7 {[%emt 0:00:42]} 9. Be3 {[%emt 0:00:08]} O-O {[%emt 0:01:50]} 10. Rd1 {[%emt 0:00:12]} Bf5 {[%emt 0:02:11]} 11. Be2 {[%emt 0:06:08]} Bc8 {[%emt 0:33:07]} 12. Nf3 {[%emt 0:05:10]} N8d7 {[%emt 0:00:26]} 13. O-O {[%emt 0:01:14]} Nf6 {[%emt 0:01:56]} 14. h3 {[%emt 0:03:17]} Ne8 {[%emt 0:07:17]} 15. Nb5 {[%emt 0:06:14]} a6 {[%emt 0:03:12]} 16. Na3 {[%emt 0:29:20]} Nd7 {[%emt 0:00:45]} 17. Nd4 {[%emt 0:01:13]} Nd6 {[%emt 0:07:32]} 18. Nc4 {[%emt 0:01:01]} Nxc4 {[%emt 0:03:06]} 19. Bxc4 {[%emt 0:00:45]} Nf6 {[%emt 0:04:42]} 20. Rfe1 {[%emt 0:02:42]} Qd7 {[%emt 0:09:19]} 21. a4 {[%emt 0:02:15]} Ne4 {[%emt 0:04:13]} 22. Be2 {[%emt 0:08:23]} Nd6 {[%emt 0:02:52]} 23. Bg5 {[%emt 0:01:27]} Re8 {[%emt 0:01:06]} 24. Bf3 {[%emt 0:02:06]} h6 {[%emt 0:02:35]} 25. Bh4 {[%emt 0:00:46]} Qd8 {[%emt 0:01:53]} 26. Qe3 {[%emt 0:04:33]} Bxd4 {[%emt 0:01:45]} 27. Qxd4 {[%emt 0:00:57]} Nf5 {[%emt 0:00:07]} 28. Qb4 {[%emt 0:01:34]} g5 {[%emt 0:01:30]} 29. Bg3 {[%emt 0:00:18]} Nxg3 {[%emt 0:00:06]} 30. fxg3 {[%emt 0:00:03]} b5 {[%emt 0:01:04]} 31. d6 {[%emt 0:02:00]} Ra7 {[%emt 0:01:56]} 32. dxe7 {[%emt 0:05:23]} Qb6+ {[%emt 0:00:58]} 33. Kh2 {[%emt 0:00:02]} Be6 {[%emt 0:00:45]} 34. Rd6 {[%emt 0:06:34]} Qc7 {[%emt 0:02:57]} 35. Rdxe6 {[%emt 0:01:00]} fxe6 {[%emt 0:00:24]} 36. Rxe6 {[%emt 0:00:03]} Rxe7 {[%emt 0:01:00]} 37. Rxh6 {[%emt 0:00:33]} Qc1 {[%emt 0:01:02]} 38. Qd4 {[%emt 0:02:19]} Rh7 {[%emt 0:03:23]} 39. Bd5+ {[%emt 0:01:07]} Kf8 {[%emt 0:00:21]} 40. Qf6+ {[%emt 0:01:11]} Raf7 {[%emt 0:00:32]} 41. Bxf7 {[%emt 0:33:11]} Rxh6 {[%emt 0:30:19]} 42. Bg6+ {[%emt 0:00:30]} Kg8 {[%emt 0:00:04]} 43. Qf7+ {[%emt 0:00:07]} Kh8 {[%emt 0:00:07]} 44. Qf8# {[%emt 0:00:04]} 1-0

[Event "NOR-ch Various 2019"]
[Site "Larvik"]
[Date "2019.07.09"]
[Round "5.37"]
[White "Sorgjerd, Jan"]
[Black "Kristiansen, Willy M"]
[Result "1/2-1/2"]
[ECO "D37"]
[WhiteElo "2061"]
[BlackElo "2118"]
[Annotator "NA"]
[PlyCount "52"]
[EventDate "2019.07.06"]
[EventType "swiss"]
[EventCountry "NOR"]
[SourceTitle "playchess.com"]
[Source "ChessBase"]
[SourceQuality "1"]
[TimeControl "40/5400+30:1800+30"]

1. d4 {[%emt 0:00:00]} d5 {[%emt 0:00:46]} 2. c4 {[%emt 0:00:25]} e6 {[%emt 0:00:22]} 3. Nc3 {[%emt 0:00:19]} Be7 {[%emt 0:00:09]} 4. Nf3 {[%emt 0:00:21]} Nf6 {[%emt 0:00:12]} 5. e3 {[%emt 0:00:41]} O-O {[%emt 0:00:11]} 6. Be2 {[%emt 0:00:22]} dxc4 {[%emt 0:00:21]} 7. Bxc4 {[%emt 0:00:09]} c5 {[%emt 0:00:13]} 8. O-O {[%emt 0:01:03]} a6 {[%emt 0:00:08]} 9. dxc5 {[%emt 0:06:18]} Bxc5 {[%emt 0:00:26]} 10. Qe2 {[%emt 0:04:51]} b5 {[%emt 0:01:43]} 11. Bd3 {[%emt 0:02:18]} Bb7 {[%emt 0:08:37]} 12. Rd1 {[%emt 0:04:13]} Qc7 {[%emt 0:04:57]} 13. h3 {[%emt 0:10:14]} Nc6 {[%emt 0:09:24]} 14. a3 {[%emt 0:04:06]} Ne5 {[%emt 0:16:12]} 15. e4 {[%emt 0:08:31]} Nxd3 {[%emt 0:02:34]} 16. Rxd3 {[%emt 0:00:18]} Rad8 {[%emt 0:01:25]} 17. Rxd8 {[%emt 0:03:09]} Rxd8 {[%emt 0:01:41]} 18. Bg5 {[%emt 0:00:13]} Be7 {[%emt 0:02:34]} 19. Rc1 {[%emt 0:01:27]} Qd7 {[%emt 0:04:53]} 20. Rd1 {[%emt 0:02:47]} Qe8 {[%emt 0:01:12]} 21. Rxd8 {[%emt 0:01:59]} Qxd8 {[%emt 0:00:48]} 22. Bf4 {[%emt 0:05:39]} h6 {[%emt 0:03:46]} 23. Nd2 {[%emt 0:02:48]} Qc8 {[%emt 0:09:03]} 24. Qd3 {[%emt 0:04:03]} Nd7 {[%emt 0:01:13]} 25. Qg3 {[%emt 0:02:34]} Kf8 {[%emt 0:03:32]} 26. Bd6 {[%emt 0:00:50]} Bxd6 {[%emt 0:00:34]} 1/2-1/2

[Event "NOR-ch Various 2019"]
[Site "Larvik"]
[Date "2019.07.09"]
[Round "5.38"]
[White "Kjoita, Torgeir"]
[Black "Aulin-Jansson, Joran"]
[Result "0-1"]
[ECO "B96"]
[WhiteElo "2012"]
[BlackElo "2223"]
[Annotator "NA"]
[PlyCount "116"]
[EventDate "2019.07.06"]
[EventType "swiss"]
[EventCountry "NOR"]
[SourceTitle "playchess.com"]
[Source "ChessBase"]
[SourceQuality "1"]
[TimeControl "40/5400+30:1800+30"]

1. e4 {[%emt 0:00:00]} c5 {[%emt 0:00:00]} 2. Nf3 {[%emt 0:00:00]} d6 {[%emt 0:00:00]} 3. d4 {[%emt 0:00:00]} cxd4 {[%emt 0:00:00]} 4. Nxd4 {[%emt 0:00:00]} Nf6 {[%emt 0:00:00]} 5. Nc3 {[%emt 0:00:00]} a6 {[%emt 0:00:00]} 6. Bg5 {[%emt 0:00:10]} e6 {[%emt 0:00:00]} 7. f4 {[%emt 0:01:01]} h6 {[%emt 0:00:06]} 8. Bh4 {[%emt 0:00:40]} Be7 {[%emt 0:00:06]} 9. g3 {[%emt 0:00:38]} Qb6 {[%emt 0:01:29]} 10. Nb3 {[%emt 0:04:25]} Nc6 {[%emt 0:04:24]} 11. Qd2 {[%emt 0:02:37]} O-O {[%emt 0:07:28]} 12. O-O-O {[%emt 0:01:23]} a5 {[%emt 0:01:02]} 13. Bg2 {[%emt 0:07:59]} a4 {[%emt 0:00:41]} 14. Nd4 {[%emt 0:00:08]} a3 {[%emt 0:00:21]} 15. b3 {[%emt 0:00:11]} Bd7 {[%emt 0:06:05]} 16. Rhe1 {[%emt 0:02:16]} Rfc8 {[%emt 0:14:40]} 17. Nxc6 {[%emt 0:16:10]} Bxc6 {[%emt 0:03:18]} 18. Nd5 {[%emt 0:05:19]} Bxd5 {[%emt 0:10:07]} 19. exd5 {[%emt 0:01:34]} Ra5 {[%emt 0:02:49]} 20. Qe3 {[%emt 0:33:35]} Rac5 {[%emt 0:03:55]} 21. Rd2 {[%emt 0:00:25]} Qc7 {[%emt 0:00:16]} 22. Ree2 {[%emt 0:02:39]} Rc3 {[%emt 0:00:51]} 23. Qd4 {[%emt 0:01:20]} e5 {[%emt 0:09:02]} 24. fxe5 {[%emt 0:05:18]} dxe5 {[%emt 0:00:36]} 25. d6 {[%emt 0:01:11]} exd4 {[%emt 0:00:13]} 26. dxc7 {[%emt 0:00:11]} R8xc7 {[%emt 0:00:16]} 27. Bxf6 {[%emt 0:02:04]} Bxf6 {[%emt 0:00:07]} 28. Re8+ {[%emt 0:01:36]} Kh7 {[%emt 0:00:06]} 29. Be4+ {[%emt 0:00:19]} g6 {[%emt 0:00:06]} 30. Kd1 {[%emt 0:02:42]} Re3 {[%emt 0:07:50]} 31. Re2 {[%emt 0:01:33]} Rec3 {[%emt 0:05:28]} 32. Bd3 {[%emt 0:03:11]} Bg5 {[%emt 0:01:24]} 33. R2e4 {[%emt 0:01:58]} Be3 {[%emt 0:00:38]} 34. R4e7 {[%emt 0:00:34]} Kg7 {[%emt 0:01:03]} 35. Rxc7 {[%emt 0:00:05]} Rxc7 {[%emt 0:00:03]} 36. Ke2 {[%emt 0:00:19]} f5 {[%emt 0:00:55]} 37. Bc4 {[%emt 0:00:57]} h5 {[%emt 0:00:42]} 38. h4 {[%emt 0:02:37]} f4 {[%emt 0:02:27]} 39. gxf4 {[%emt 0:01:01]} Bxf4 {[%emt 0:00:06]} 40. Kf3 {[%emt 0:00:14]} Bd6 {[%emt 0:01:29]} 41. Rg8+ {[%emt 0:06:35]} Kh7 {[%emt 0:03:02]} 42. Rd8 {[%emt 0:01:15]} Be5 {[%emt 0:01:32]} 43. Rf8 {[%emt 0:04:54]} b5 {[%emt 0:04:49]} 44. Bd3 {[%emt 0:02:14]} b4 {[%emt 0:00:07]} 45. Ke4 {[%emt 0:01:37]} Bg3 {[%emt 0:00:49]} 46. Kxd4 {[%emt 0:04:43]} Bxh4 {[%emt 0:00:40]} 47. Rf1 {[%emt 0:01:20]} Kh6 {[%emt 0:00:51]} 48. Bc4 {[%emt 0:00:50]} Be7 {[%emt 0:03:39]} 49. Ke5 {[%emt 0:00:36]} g5 {[%emt 0:02:06]} 50. Rf7 {[%emt 0:00:58]} g4 {[%emt 0:00:43]} 51. Ke6 {[%emt 0:01:36]} h4 {[%emt 0:03:31]} 52. Bd3 {[%emt 0:00:31]} h3 {[%emt 0:01:32]} 53. Bf5 {[%emt 0:00:55]} Rc6+ {[%emt 0:02:03]} 54. Ke5 {[%emt 0:03:48]} Rc5+ {[%emt 0:01:47]} 55. Ke6 {[%emt 0:00:06]} Rxf5 {[%emt 0:00:36]} 56. Rxf5 {[%emt 0:01:02]} h2 {[%emt 0:00:16]} 57. Rf1 {[%emt 0:00:18]} g3 {[%emt 0:00:08]} 58. Rh1 {[%emt 0:00:11]} Bc5 {[%emt 0:00:12]} 0-1

[Event "NOR-ch Various 2019"]
[Site "Larvik"]
[Date "2019.07.09"]
[Round "5.39"]
[White "Rasmussen, Jonas H"]
[Black "Hagesather, Ellen"]
[Result "0-1"]
[ECO "A90"]
[WhiteElo "2017"]
[BlackElo "2193"]
[Annotator "NA"]
[PlyCount "84"]
[EventDate "2019.07.06"]
[EventType "swiss"]
[EventCountry "NOR"]
[SourceTitle "playchess.com"]
[Source "ChessBase"]
[SourceQuality "1"]
[TimeControl "40/5400+30:1800+30"]

1. d4 {[%emt 0:00:00]} d5 {[%emt 0:00:00]} 2. Nf3 {[%emt 0:00:15]} e6 {[%emt 0:00:00]} 3. g3 {[%emt 0:00:06]} f5 {[%emt 0:00:07]} 4. Bg2 {[%emt 0:00:09]} Nf6 {[%emt 0:00:20]} 5. O-O {[%emt 0:00:14]} Bd6 {[%emt 0:00:24]} 6. c4 {[%emt 0:00:43]} c6 {[%emt 0:00:32]} 7. b3 {[%emt 0:00:13]} Qe7 {[%emt 0:00:24]} 8. Bb2 {[%emt 0:00:12]} O-O {[%emt 0:00:55]} 9. Ne5 {[%emt 0:00:47]} b6 {[%emt 0:01:24]} 10. cxd5 {[%emt 0:00:30]} exd5 {[%emt 0:01:20]} 11. Nd2 {[%emt 0:01:48]} Bxe5 {[%emt 0:07:38]} 12. dxe5 {[%emt 0:00:11]} Ng4 {[%emt 0:00:15]} 13. Nf3 {[%emt 0:04:54]} Bb7 {[%emt 0:04:06]} 14. h3 {[%emt 0:03:58]} Nh6 {[%emt 0:00:06]} 15. e3 {[%emt 0:04:40]} Nd7 {[%emt 0:01:11]} 16. Rc1 {[%emt 0:01:43]} Nf7 {[%emt 0:02:43]} 17. Qd4 {[%emt 0:02:07]} Qe6 {[%emt 0:02:16]} 18. Qc3 {[%emt 0:06:56]} c5 {[%emt 0:01:53]} 19. Rfd1 {[%emt 0:01:02]} Rfe8 {[%emt 0:02:51]} 20. Ne1 {[%emt 0:04:58]} Ng5 {[%emt 0:06:15]} 21. Nd3 {[%emt 0:05:01]} d4 {[%emt 0:03:19]} 22. exd4 {[%emt 0:01:45]} Bxg2 {[%emt 0:01:27]} 23. Nf4 {[%emt 0:13:09]} Nxh3+ {[%emt 0:03:55]} 24. Kxg2 {[%emt 0:00:19]} Nxf4+ {[%emt 0:00:04]} 25. gxf4 {[%emt 0:00:09]} cxd4 {[%emt 0:03:44]} 26. Rxd4 {[%emt 0:05:12]} Nc5 {[%emt 0:00:47]} 27. Rd6 {[%emt 0:07:16]} Qe7 {[%emt 0:03:58]} 28. Qh3 {[%emt 0:07:45]} Qb7+ {[%emt 0:06:18]} 29. f3 {[%emt 0:05:18]} g6 {[%emt 0:09:22]} 30. Rh1 {[%emt 0:03:36]} Ne6 {[%emt 0:01:28]} 31. Kg3 {[%emt 0:02:48]} Rac8 {[%emt 0:01:28]} 32. Rhd1 {[%emt 0:02:38]} Rc7 {[%emt 0:02:35]} 33. Qf1 {[%emt 0:06:55]} g5 {[%emt 0:03:16]} 34. fxg5 {[%emt 0:03:58]} f4+ {[%emt 0:01:33]} 35. Kh4 {[%emt 0:02:04]} Rc2 {[%emt 0:13:06]} 36. R1d2 {[%emt 0:01:30]} Rxd2 {[%emt 0:00:14]} 37. Rxd2 {[%emt 0:00:07]} Qe7 {[%emt 0:01:35]} 38. Rg2 {[%emt 0:01:29]} h6 {[%emt 0:01:02]} 39. Qc4 {[%emt 0:01:01]} hxg5+ {[%emt 0:00:57]} 40. Kg4 {[%emt 0:00:32]} Qh7 {[%emt 0:00:59]} 41. Rg1 {[%emt 0:07:29]} b5 {[%emt 0:08:11]} 42. Qf1 {[%emt 0:19:02]} Ng7 {[%emt 0:04:20]} 0-1

[Event "NOR-ch Various 2019"]
[Site "Larvik"]
[Date "2019.07.09"]
[Round "5.41"]
[White "Mikalsen, Harald"]
[Black "Holleland, Sigve"]
[Result "0-1"]
[ECO "A25"]
[WhiteElo "1992"]
[BlackElo "2092"]
[Annotator "NA"]
[PlyCount "72"]
[EventDate "2019.07.06"]
[EventType "swiss"]
[EventCountry "NOR"]
[SourceTitle "playchess.com"]
[Source "ChessBase"]
[SourceQuality "1"]
[TimeControl "40/5400+30:1800+30"]

1. c4 {[%emt 0:00:44]} e5 {[%emt 0:00:00]} 2. Nc3 {[%emt 0:00:15]} Nc6 {[%emt 0:00:00]} 3. g3 {[%emt 0:01:08]} Bc5 {[%emt 0:00:00]} 4. Bg2 {[%emt 0:00:18]} d6 {[%emt 0:00:00]} 5. e3 {[%emt 0:00:38]} Nge7 {[%emt 0:00:19]} 6. Nge2 {[%emt 0:00:25]} a6 {[%emt 0:00:09]} 7. d4 {[%emt 0:01:08]} Ba7 {[%emt 0:00:37]} 8. O-O {[%emt 0:02:09]} h5 {[%emt 0:00:34]} 9. d5 {[%emt 0:17:52]} Nb8 {[%emt 0:00:08]} 10. Qd3 {[%emt 0:05:27]} h4 {[%emt 0:03:52]} 11. e4 {[%emt 0:00:50]} hxg3 {[%emt 0:00:31]} 12. hxg3 {[%emt 0:00:10]} Bg4 {[%emt 0:00:59]} 13. Be3 {[%emt 0:00:29]} Bxe3 {[%emt 0:08:38]} 14. Qxe3 {[%emt 0:00:16]} Qc8 {[%emt 0:01:05]} 15. f4 {[%emt 0:04:02]} Nd7 {[%emt 0:02:15]} 16. b4 {[%emt 0:17:49]} Nf6 {[%emt 0:04:07]} 17. c5 {[%emt 0:01:25]} Bh3 {[%emt 0:07:35]} 18. f5 {[%emt 0:00:23]} Ng4 {[%emt 0:00:24]} 19. Qf3 {[%emt 0:04:49]} Nh2 {[%emt 0:01:35]} 20. Qe3 {[%emt 0:05:42]} Nxf1 {[%emt 0:01:23]} 21. Rxf1 {[%emt 0:00:07]} Bxg2 {[%emt 0:01:23]} 22. Kxg2 {[%emt 0:00:15]} f6 {[%emt 0:00:21]} 23. Na4 {[%emt 0:17:22]} Qd7 {[%emt 0:03:30]} 24. Qb3 {[%emt 0:00:16]} Nc8 {[%emt 0:03:13]} 25. Rc1 {[%emt 0:05:16]} g6 {[%emt 0:07:00]} 26. c6 {[%emt 0:06:13]} bxc6 {[%emt 0:00:48]} 27. dxc6 {[%emt 0:00:10]} Qf7 {[%emt 0:01:26]} 28. Qxf7+ {[%emt 0:01:26]} Kxf7 {[%emt 0:00:05]} 29. fxg6+ {[%emt 0:00:05]} Kxg6 {[%emt 0:00:20]} 30. Nac3 {[%emt 0:00:15]} Ne7 {[%emt 0:00:23]} 31. Nd5 {[%emt 0:00:34]} Nxd5 {[%emt 0:00:10]} 32. exd5 {[%emt 0:00:05]} Rhb8 {[%emt 0:01:51]} 33. Rb1 {[%emt 0:00:44]} f5 {[%emt 0:01:32]} 34. Nc3 {[%emt 0:00:12]} Kf6 {[%emt 0:00:59]} 35. Kf3 {[%emt 0:00:13]} e4+ {[%emt 0:01:46]} 36. Kf4 {[%emt 0:01:48]} Rg8 {[%emt 0:00:29]} 0-1

[Event "NOR-ch Various 2019"]
[Site "Larvik"]
[Date "2019.07.10"]
[Round "6.1"]
[White "Strand, Kjetil"]
[Black "Stake-Larsen, Gunnar"]
[Result "1-0"]
[ECO "B33"]
[WhiteElo "2035"]
[BlackElo "1976"]
[Annotator "NA"]
[PlyCount "73"]
[EventDate "2019.07.06"]
[EventType "swiss"]
[EventCountry "NOR"]
[SourceTitle "playchess.com"]
[Source "ChessBase"]
[SourceQuality "1"]
[TimeControl "40/5400+30:1800+30"]

1. e4 {[%emt 0:00:00]} c5 {[%emt 0:00:00]} 2. Nf3 {[%emt 0:00:00]} e6 {[%emt 0:00:09]} 3. d4 {[%emt 0:00:00]} cxd4 {[%emt 0:00:33]} 4. Nxd4 {[%emt 0:00:10]} Nf6 {[%emt 0:00:55]} 5. Nc3 {[%emt 0:00:15]} Nc6 {[%emt 0:01:15]} 6. Ndb5 {[%emt 0:01:06]} d6 {[%emt 0:02:30]} 7. Bf4 {[%emt 0:00:18]} e5 {[%emt 0:00:55]} 8. Bg5 {[%emt 0:00:08]} a6 {[%emt 0:04:08]} 9. Na3 {[%emt 0:00:17]} b5 {[%emt 0:01:55]} 10. Bxf6 {[%emt 0:00:34]} gxf6 {[%emt 0:04:44]} 11. Nd5 {[%emt 0:00:13]} Bg7 {[%emt 0:10:46]} 12. c3 {[%emt 0:02:56]} Ne7 {[%emt 0:08:32]} 13. Nc2 {[%emt 0:02:28]} f5 {[%emt 0:08:01]} 14. a4 {[%emt 0:03:08]} Rb8 {[%emt 0:05:23]} 15. axb5 {[%emt 0:05:02]} axb5 {[%emt 0:00:45]} 16. exf5 {[%emt 0:00:56]} Bxf5 {[%emt 0:03:13]} 17. Ncb4 {[%emt 0:03:54]} Qd7 {[%emt 0:05:10]} 18. Na6 {[%emt 0:15:44]} O-O {[%emt 0:10:32]} 19. Nxb8 {[%emt 0:00:34]} Rxb8 {[%emt 0:00:03]} 20. Nxe7+ {[%emt 0:08:30]} Qxe7 {[%emt 0:00:04]} 21. Qf3 {[%emt 0:02:33]} Bg6 {[%emt 0:03:06]} 22. Qd5 {[%emt 0:03:34]} e4 {[%emt 0:03:24]} 23. Ra8 {[%emt 0:03:22]} Rd8 {[%emt 0:00:25]} 24. Bxb5 {[%emt 0:00:50]} Be5 {[%emt 0:00:24]} 25. O-O {[%emt 0:02:25]} Rxa8 {[%emt 0:02:14]} 26. Qxa8+ {[%emt 0:00:18]} Kg7 {[%emt 0:00:09]} 27. f4 {[%emt 0:03:48]} exf3 {[%emt 0:03:19]} 28. Qxf3 {[%emt 0:01:07]} Qh4 {[%emt 0:02:37]} 29. g3 {[%emt 0:02:07]} Qg5 {[%emt 0:00:45]} 30. Bc4 {[%emt 0:05:05]} f6 {[%emt 0:05:06]} 31. Kg2 {[%emt 0:04:08]} Qd2+ {[%emt 0:02:09]} 32. Rf2 {[%emt 0:00:56]} Qg5 {[%emt 0:02:52]} 33. h4 {[%emt 0:01:17]} Qh6 {[%emt 0:01:06]} 34. Qd5 {[%emt 0:00:34]} Qe3 {[%emt 0:00:41]} 35. Qg8+ {[%emt 0:00:43]} Kh6 {[%emt 0:01:09]} 36. Qf8+ {[%emt 0:00:13]} Kh5 {[%emt 0:00:08]} 37. Be2+ {[%emt 0:00:02]} 1-0